[Event "Live Chess"]
[Site "Chess.com"]
[Date "2023.05.21"]
[Round "-"]
[White "Geomorph"]
[Black "MJMykh"]
[Result "1-0"]
[WhiteElo "1276"]
[BlackElo "1095"]
[TimeControl "300"]
[EndTime "1:17:29 PDT"]
[Termination "Geomorph won by checkmate"]

1. e4 {[%clk 0:04:59]} 1... e5 {[%clk 0:04:58.9]} 2. Nf3 {[%clk 0:04:57.7]} 2...
Nc6 {[%clk 0:04:57.4]} 3. Bc4 {[%clk 0:04:55.3]} 3... h6 {[%clk 0:04:55.3]} 4.
O-O {[%clk 0:04:52.9]} 4... Nf6 {[%clk 0:04:54.5]} 5. d4 {[%clk 0:04:51.4]} 5...
exd4 {[%clk 0:04:52.6]} 6. e5 {[%clk 0:04:50.4]} 6... Ng8 {[%clk 0:04:47.2]} 7.
Nxd4 {[%clk 0:04:44.8]} 7... Nxd4 {[%clk 0:04:46.4]} 8. Qxd4 {[%clk 0:04:43.9]}
8... c5 {[%clk 0:04:39.1]} 9. Qf4 {[%clk 0:04:33.9]} 9... Qe7 {[%clk 0:04:34.3]}
10. Re1 {[%clk 0:04:29]} 10... f6 {[%clk 0:04:24.6]} 11. Qg3 {[%clk 0:04:13]}
11... fxe5 {[%clk 0:04:17.3]} 12. Rxe5 {[%clk 0:04:09.4]} 12... Qxe5 {[%clk
0:04:13.1]} 13. Qxe5+ {[%clk 0:04:09.3]} 13... Kd8 {[%clk 0:04:10.6]} 14. Bf4
{[%clk 0:04:02.4]} 14... d6 {[%clk 0:04:04.7]} 15. Qd5 {[%clk 0:03:52.1]} 15...
Nf6 {[%clk 0:04:01]} 16. Qf7 {[%clk 0:03:46.4]} 16... Be7 {[%clk 0:03:51.8]} 17.
Nc3 {[%clk 0:03:42.7]} 17... g5 {[%clk 0:03:47.7]} 18. Bxd6 {[%clk 0:03:38]}
18... Re8 {[%clk 0:03:42.9]} 19. Bxe7+ {[%clk 0:03:33.5]} 19... Rxe7 {[%clk
0:03:41.7]} 20. Qxf6 {[%clk 0:03:32.7]} 20... Kd7 {[%clk 0:03:41.2]} 21. Bb5+
{[%clk 0:03:27]} 21... Kd8 {[%clk 0:03:37.7]} 22. Nd5 {[%clk 0:03:25.3]} 22...
Be6 {[%clk 0:03:30.6]} 23. Qxe7+ {[%clk 0:03:24]} 23... Kc8 {[%clk 0:03:29.5]}
24. Qc7# {[%clk 0:03:23.5]} 1-0

[Event "Live Chess"]
[Site "Chess.com"]
[Date "2023.05.21"]
[Round "-"]
[White "Bot_Boy"]
[Black "TKDRyan"]
[Result "0-1"]
[WhiteElo "334"]
[BlackElo "1137"]
[TimeControl "300"]
[EndTime "1:17:43 PDT"]
[Termination "TKDRyan won on time"]

1. e4 {[%clk 0:04:30.6]} 1... c5 {[%clk 0:04:58.3]} 2. Nf3 {[%clk 0:04:28.1]}
2... d6 {[%clk 0:04:57.8]} 3. d4 {[%clk 0:04:26.4]} 3... cxd4 {[%clk 0:04:56.5]}
4. Nxd4 {[%clk 0:04:24.1]} 4... Nc6 {[%clk 0:04:56.4]} 5. Nxc6 {[%clk
0:04:21.8]} 5... bxc6 {[%clk 0:04:55.8]} 6. Be2 {[%clk 0:04:20.2]} 6... e5
{[%clk 0:04:55.4]} 7. O-O {[%clk 0:04:18.1]} 7... Nf6 {[%clk 0:04:55]} 8. Nc3
{[%clk 0:04:16.1]} 8... Be7 {[%clk 0:04:54.7]} 9. Bd2 {[%clk 0:04:09.7]} 9... h6
{[%clk 0:04:54.1]} 10. h3 {[%clk 0:03:53.5]} 10... O-O {[%clk 0:04:53]} 11. Bg4
{[%clk 0:03:46.6]} 11... Bxg4 {[%clk 0:04:39.9]} 12. hxg4 {[%clk 0:03:23.1]}
12... Qd7 {[%clk 0:04:37.2]} 13. f3 {[%clk 0:03:13.6]} 13... Nh7 {[%clk
0:04:29.7]} 14. Be3 {[%clk 0:03:07.9]} 14... Bg5 {[%clk 0:04:27.5]} 15. f4
{[%clk 0:03:02.2]} 15... exf4 {[%clk 0:04:26]} 16. Bxf4 {[%clk 0:02:57.7]} 16...
Bxf4 {[%clk 0:04:25.1]} 17. Rxf4 {[%clk 0:02:51.5]} 17... Ng5 {[%clk 0:04:22.7]}
18. Rf5 {[%clk 0:02:34.9]} 18... Rfe8 {[%clk 0:04:05]} 19. Qd3 {[%clk
0:02:17.4]} 19... Rad8 {[%clk 0:03:49.7]} 20. Re1 {[%clk 0:02:02.3]} 20... d5
{[%clk 0:03:44.3]} 21. Rf4 {[%clk 0:01:29.9]} 21... d4 {[%clk 0:03:21.5]} 22.
Na4 {[%clk 0:01:07.8]} 22... c5 {[%clk 0:03:20.1]} 23. Nxc5 {[%clk 0:01:02.8]}
23... Qc6 {[%clk 0:03:13.7]} 24. b4 {[%clk 0:00:51]} 24... a5 {[%clk 0:03:10]}
25. a3 {[%clk 0:00:42.3]} 25... axb4 {[%clk 0:03:03.2]} 26. axb4 {[%clk
0:00:36.9]} 26... Ne6 {[%clk 0:03:00.1]} 27. Nxe6 {[%clk 0:00:31.3]} 27... Qxe6
{[%clk 0:02:56.8]} 28. b5 {[%clk 0:00:24.1]} 28... Qb6 {[%clk 0:02:53.5]} 29. e5
{[%clk 0:00:18]} 29... f6 {[%clk 0:02:48]} 30. Rfe4 {[%clk 0:00:09.7]} 30...
fxe5 {[%clk 0:02:38.9]} 31. Rxe5 {[%clk 0:00:06]} 31... Rxe5 {[%clk 0:02:38.8]}
32. Rxe5 {[%clk 0:00:04.1]} 32... Kh8 {[%clk 0:02:22.6]} 33. Qc4 {[%clk
0:00:01.9]} 33... d3+ {[%clk 0:02:20.1]} 0-1

[Event "Live Chess"]
[Site "Chess.com"]
[Date "2023.05.21"]
[Round "-"]
[White "BJAW87"]
[Black "SupremeTactician"]
[Result "0-1"]
[WhiteElo "1435"]
[BlackElo "2280"]
[TimeControl "300"]
[EndTime "1:17:47 PDT"]
[Termination "SupremeTactician won by checkmate"]

1. e4 {[%clk 0:04:59.1]} 1... e5 {[%clk 0:04:59.1]} 2. Nc3 {[%clk 0:04:58.5]}
2... Nc6 {[%clk 0:04:58.1]} 3. f4 {[%clk 0:04:57.8]} 3... exf4 {[%clk
0:04:57.1]} 4. Nf3 {[%clk 0:04:56.2]} 4... d6 {[%clk 0:04:55.8]} 5. d4 {[%clk
0:04:51.1]} 5... Bg4 {[%clk 0:04:55.5]} 6. Bxf4 {[%clk 0:04:50.3]} 6... Bxf3
{[%clk 0:04:53.1]} 7. Qxf3 {[%clk 0:04:50.2]} 7... Nxd4 {[%clk 0:04:52]} 8. Qd3
{[%clk 0:04:47.3]} 8... Nc6 {[%clk 0:04:49.6]} 9. O-O-O {[%clk 0:04:43.2]} 9...
Be7 {[%clk 0:04:48.7]} 10. Qg3 {[%clk 0:04:32.2]} 10... Nf6 {[%clk 0:04:36.1]}
11. Qxg7 {[%clk 0:04:28.3]} 11... Rg8 {[%clk 0:04:35.2]} 12. Qh6 {[%clk
0:04:26.6]} 12... Ng4 {[%clk 0:04:32.8]} 13. Qxh7 {[%clk 0:04:17.4]} 13... Nf6
{[%clk 0:04:32.1]} 14. Qf5 {[%clk 0:04:05.9]} 14... Qd7 {[%clk 0:04:28.6]} 15.
Qxd7+ {[%clk 0:04:00.7]} 15... Kxd7 {[%clk 0:04:26.2]} 16. g3 {[%clk 0:03:59.7]}
16... Rae8 {[%clk 0:04:18.8]} 17. e5 {[%clk 0:03:54.2]} 17... Nh5 {[%clk
0:04:15.9]} 18. Bh3+ {[%clk 0:03:22.4]} 18... Kd8 {[%clk 0:04:14]} 19. exd6
{[%clk 0:03:12.9]} 19... cxd6 {[%clk 0:04:01.7]} 20. Bxd6 {[%clk 0:03:10.2]}
20... Bxd6 {[%clk 0:04:00.7]} 21. Rxd6+ {[%clk 0:03:10.1]} 21... Kc7 {[%clk
0:04:00.5]} 22. Rd7+ {[%clk 0:03:06.7]} 22... Kb8 {[%clk 0:03:59.9]} 23. Rxf7
{[%clk 0:03:01.5]} 23... Ng7 {[%clk 0:03:17.1]} 24. Bd7 {[%clk 0:02:28.1]} 24...
Re7 {[%clk 0:03:10.2]} 25. Rxe7 {[%clk 0:02:22.2]} 25... Nxe7 {[%clk 0:03:09.4]}
26. Re1 {[%clk 0:02:09.9]} 26... Nef5 {[%clk 0:03:06.9]} 27. Bxf5 {[%clk
0:02:05.8]} 27... Nxf5 {[%clk 0:03:05.5]} 28. Kd2 {[%clk 0:01:56.7]} 28... Rd8+
{[%clk 0:02:57.2]} 29. Ke2 {[%clk 0:01:37.2]} 29... Nd4+ {[%clk 0:02:55.9]} 30.
Kd3 {[%clk 0:01:25.5]} 30... Nf3+ {[%clk 0:02:51.2]} 31. Ke2 {[%clk 0:01:20.5]}
31... Nxe1 {[%clk 0:02:46.3]} 32. Kxe1 {[%clk 0:01:20.4]} 32... Kc7 {[%clk
0:02:45.7]} 33. Ke2 {[%clk 0:01:10.1]} 33... a6 {[%clk 0:02:43.3]} 34. g4 {[%clk
0:01:07.3]} 34... Rh8 {[%clk 0:02:39.9]} 35. g5 {[%clk 0:01:00.3]} 35... Rxh2+
{[%clk 0:02:38.4]} 36. Kd3 {[%clk 0:01:00]} 36... Rg2 {[%clk 0:02:31.9]} 37. Ne4
{[%clk 0:00:59]} 37... Kc6 {[%clk 0:02:31.1]} 38. b3 {[%clk 0:00:55.3]} 38...
Kd5 {[%clk 0:02:30.1]} 39. Nf6+ {[%clk 0:00:49]} 39... Ke5 {[%clk 0:02:25.4]}
40. Nh7 {[%clk 0:00:45.6]} 40... b5 {[%clk 0:02:19.3]} 41. a4 {[%clk 0:00:43]}
41... Rg3+ {[%clk 0:02:13.5]} 42. Kd2 {[%clk 0:00:36.7]} 42... Kd4 {[%clk
0:02:12.8]} 43. axb5 {[%clk 0:00:30.5]} 43... axb5 {[%clk 0:02:12.7]} 44. Kc1
{[%clk 0:00:26.4]} 44... Kc3 {[%clk 0:02:11.3]} 45. Kb1 {[%clk 0:00:22.1]} 45...
Rg1+ {[%clk 0:02:10]} 46. Ka2 {[%clk 0:00:21.3]} 46... Kxc2 {[%clk 0:02:09.7]}
47. Ka3 {[%clk 0:00:20.5]} 47... Kc3 {[%clk 0:02:09.1]} 48. Ka2 {[%clk
0:00:15.2]} 48... b4 {[%clk 0:02:08.3]} 49. Nf6 {[%clk 0:00:07]} 49... Rg2+
{[%clk 0:02:02.8]} 50. Kb1 {[%clk 0:00:06]} 50... Kxb3 {[%clk 0:02:02.3]} 51.
Ne4 {[%clk 0:00:05]} 51... Rg1# {[%clk 0:02:01.3]} 0-1

[Event "Live Chess"]
[Site "Chess.com"]
[Date "2023.05.21"]
[Round "-"]
[White "Hacker_2009"]
[Black "Redwinelover"]
[Result "1-0"]
[WhiteElo "1920"]
[BlackElo "1414"]
[TimeControl "300"]
[EndTime "1:17:57 PDT"]
[Termination "Hacker_2009 won by resignation"]

1. d4 {[%clk 0:04:57.2]} 1... Nf6 {[%clk 0:04:57.2]} 2. Nf3 {[%clk 0:04:54.9]}
2... c5 {[%clk 0:04:54.9]} 3. e3 {[%clk 0:04:53.5]} 3... d5 {[%clk 0:04:52.2]}
4. c4 {[%clk 0:04:52.1]} 4... Nc6 {[%clk 0:04:48.6]} 5. Nc3 {[%clk 0:04:51.2]}
5... cxd4 {[%clk 0:04:41.6]} 6. Nxd4 {[%clk 0:04:48]} 6... e5 {[%clk 0:04:31]}
7. Nf3 {[%clk 0:04:41.7]} 7... d4 {[%clk 0:04:27.7]} 8. exd4 {[%clk 0:04:37.9]}
8... exd4 {[%clk 0:04:26]} 9. Nb5 {[%clk 0:04:33.1]} 9... Qa5+ {[%clk
0:04:22.7]} 10. Bd2 {[%clk 0:04:29.9]} 10... Qb6 {[%clk 0:04:20.1]} 11. a4
{[%clk 0:04:19.1]} 11... a5 {[%clk 0:04:13.6]} 12. Bf4 {[%clk 0:04:12.8]} 12...
Bg4 {[%clk 0:04:09.2]} 13. Nc7+ {[%clk 0:04:11.2]} 13... Kd7 {[%clk 0:03:54.2]}
14. Nxa8 {[%clk 0:04:10.2]} 14... Bb4+ {[%clk 0:03:50.9]} 15. Bd2 {[%clk
0:04:06.1]} 15... Rxa8 {[%clk 0:03:46]} 16. Be2 {[%clk 0:04:02]} 16... Re8
{[%clk 0:03:42.7]} 17. O-O {[%clk 0:04:00.7]} 17... Bxd2 {[%clk 0:03:16.1]} 18.
Qxd2 {[%clk 0:03:58.4]} 18... Bxf3 {[%clk 0:03:11.7]} 19. Bxf3 {[%clk
0:03:56.1]} 19... Nb4 {[%clk 0:03:10.3]} 20. Rfd1 {[%clk 0:03:49.4]} 20... Ne4
{[%clk 0:03:05.8]} 21. Qxd4+ {[%clk 0:03:47.3]} 21... Qxd4 {[%clk 0:03:00.8]}
22. Rxd4+ {[%clk 0:03:46.9]} 22... Nd6 {[%clk 0:02:59]} 23. c5 {[%clk
0:03:46.3]} 1-0

[Event "Live Chess"]
[Site "Chess.com"]
[Date "2023.05.21"]
[Round "-"]
[White "ProfPoisson"]
[Black "rayzor59"]
[Result "1-0"]
[WhiteElo "1182"]
[BlackElo "728"]
[TimeControl "300"]
[EndTime "1:18:01 PDT"]
[Termination "ProfPoisson won by resignation"]

1. e4 {[%clk 0:04:54.8]} 1... d5 {[%clk 0:04:58.9]} 2. exd5 {[%clk 0:04:52.4]}
2... Qxd5 {[%clk 0:04:57.7]} 3. Nc3 {[%clk 0:04:50.4]} 3... Qa5 {[%clk
0:04:56.8]} 4. b4 {[%clk 0:04:47.8]} 4... Qxb4 {[%clk 0:04:54.8]} 5. Nb5 {[%clk
0:04:45.6]} 5... Qa5 {[%clk 0:04:45.8]} 6. Bc4 {[%clk 0:04:41.5]} 6... c6 {[%clk
0:04:43.5]} 7. Bxf7+ {[%clk 0:04:34.3]} 7... Kxf7 {[%clk 0:04:41.1]} 8. Qh5+
{[%clk 0:04:32.5]} 8... Kf6 {[%clk 0:04:25.3]} 9. Bb2+ {[%clk 0:04:27.6]} 9...
e5 {[%clk 0:03:46.9]} 10. Qxe5+ {[%clk 0:04:22]} 10... Kg6 {[%clk 0:03:38.2]}
11. Qg3+ {[%clk 0:03:49.5]} 11... Kf7 {[%clk 0:03:11.1]} 12. Qf4+ {[%clk
0:03:31.3]} 12... Nf6 {[%clk 0:03:09.1]} 13. Qc7+ {[%clk 0:03:14.3]} 13... Qxc7
{[%clk 0:01:59.7]} 14. Nxc7 {[%clk 0:03:14.2]} 1-0

[Event "Live Chess"]
[Site "Chess.com"]
[Date "2023.05.21"]
[Round "-"]
[White "Singapourfeuj"]
[Black "ExIsambard"]
[Result "1-0"]
[WhiteElo "2186"]
[BlackElo "1925"]
[TimeControl "300"]
[EndTime "1:18:07 PDT"]
[Termination "Singapourfeuj won by resignation"]

1. d4 {[%clk 0:04:59.3]} 1... Nf6 {[%clk 0:04:58.8]} 2. Nf3 {[%clk 0:04:57.6]}
2... d5 {[%clk 0:04:57.8]} 3. g3 {[%clk 0:04:56.4]} 3... c6 {[%clk 0:04:57]} 4.
Bg2 {[%clk 0:04:55.6]} 4... Bg4 {[%clk 0:04:56.9]} 5. O-O {[%clk 0:04:54.7]}
5... e6 {[%clk 0:04:56.7]} 6. h3 {[%clk 0:04:54]} 6... Bd6 {[%clk 0:04:56.6]} 7.
hxg4 {[%clk 0:04:52.8]} 7... Nxg4 {[%clk 0:04:56.4]} 8. Nc3 {[%clk 0:04:48.5]}
8... h5 {[%clk 0:04:55.5]} 9. e4 {[%clk 0:04:47.4]} 9... Nd7 {[%clk 0:04:53.6]}
10. e5 {[%clk 0:04:46.2]} 10... Be7 {[%clk 0:04:52.3]} 11. Qd3 {[%clk 0:04:42]}
11... h4 {[%clk 0:04:49.8]} 12. Bf4 {[%clk 0:04:38.5]} 12... hxg3 {[%clk
0:04:48.1]} 13. Bxg3 {[%clk 0:04:37.3]} 13... Qc7 {[%clk 0:04:43]} 14. a3 {[%clk
0:04:30.6]} 14... Nh6 {[%clk 0:04:41.7]} 15. b4 {[%clk 0:04:26.9]} 15... Nf5
{[%clk 0:04:40.3]} 16. b5 {[%clk 0:04:25.8]} 16... c5 {[%clk 0:04:38.5]} 17.
Rab1 {[%clk 0:04:19.7]} 17... b6 {[%clk 0:04:37]} 18. Nxd5 {[%clk 0:04:11.4]}
18... exd5 {[%clk 0:04:11.1]} 19. Qxf5 {[%clk 0:04:09.2]} 19... cxd4 {[%clk
0:04:10.3]} 20. e6 {[%clk 0:04:07.9]} 20... fxe6 {[%clk 0:04:08.1]} 21. Qg6+
{[%clk 0:04:05.8]} 1-0

[Event "Live Chess"]
[Site "Chess.com"]
[Date "2023.05.21"]
[Round "-"]
[White "OceanFloater"]
[Black "whitedjohn"]
[Result "0-1"]
[WhiteElo "1024"]
[BlackElo "1641"]
[TimeControl "300"]
[EndTime "1:18:28 PDT"]
[Termination "whitedjohn won by checkmate"]

1. e4 {[%clk 0:04:58.4]} 1... Nf6 {[%clk 0:04:57.7]} 2. Nc3 {[%clk 0:04:56.6]}
2... d5 {[%clk 0:04:56.2]} 3. exd5 {[%clk 0:04:54]} 3... Nxd5 {[%clk 0:04:54.9]}
4. Nf3 {[%clk 0:04:52.8]} 4... Nxc3 {[%clk 0:04:53.7]} 5. dxc3 {[%clk
0:04:49.2]} 5... Qxd1+ {[%clk 0:04:52.2]} 6. Kxd1 {[%clk 0:04:48.9]} 6... Bg4
{[%clk 0:04:50.9]} 7. h3 {[%clk 0:04:46.3]} 7... Bxf3+ {[%clk 0:04:49]} 8. gxf3
{[%clk 0:04:46]} 8... Nc6 {[%clk 0:04:47.5]} 9. Be3 {[%clk 0:04:43.7]} 9...
O-O-O+ {[%clk 0:04:46]} 10. Ke2 {[%clk 0:04:42.7]} 10... e5 {[%clk 0:04:42.4]}
11. Rd1 {[%clk 0:04:40.9]} 11... Be7 {[%clk 0:04:39.3]} 12. Rxd8+ {[%clk
0:04:34.8]} 12... Rxd8 {[%clk 0:04:37.3]} 13. Bg2 {[%clk 0:04:33.9]} 13... Na5
{[%clk 0:04:33.3]} 14. Rd1 {[%clk 0:04:30.5]} 14... Rxd1 {[%clk 0:04:31]} 15.
Kxd1 {[%clk 0:04:28.8]} 15... a6 {[%clk 0:04:23.5]} 16. f4 {[%clk 0:04:27.7]}
16... exf4 {[%clk 0:04:16.2]} 17. Bxf4 {[%clk 0:04:26.8]} 17... Kd7 {[%clk
0:04:08]} 18. b3 {[%clk 0:04:25.3]} 18... Bd6 {[%clk 0:04:01.3]} 19. Bxd6 {[%clk
0:04:20.1]} 19... Kxd6 {[%clk 0:04:00.1]} 20. Kd2 {[%clk 0:04:17.7]} 20... Nc6
{[%clk 0:03:57.4]} 21. Kd3 {[%clk 0:04:15.9]} 21... b6 {[%clk 0:03:55.7]} 22.
Be4 {[%clk 0:04:14.7]} 22... g6 {[%clk 0:03:48.9]} 23. h4 {[%clk 0:04:11.9]}
23... f5 {[%clk 0:03:47.7]} 24. Bf3 {[%clk 0:04:08.4]} 24... Ne5+ {[%clk
0:03:45.6]} 25. Ke3 {[%clk 0:04:06.6]} 25... Nxf3 {[%clk 0:03:44.1]} 26. Kxf3
{[%clk 0:04:06]} 26... Ke5 {[%clk 0:03:42.2]} 27. Ke3 {[%clk 0:04:03.6]} 27...
h6 {[%clk 0:03:39.7]} 28. f3 {[%clk 0:04:02.7]} 28... g5 {[%clk 0:03:38.4]} 29.
hxg5 {[%clk 0:04:01.1]} 29... hxg5 {[%clk 0:03:37.4]} 30. c4 {[%clk 0:03:59.8]}
30... f4+ {[%clk 0:03:28.2]} 31. Kd3 {[%clk 0:03:56.6]} 31... c5 {[%clk
0:03:19.1]} 32. c3 {[%clk 0:03:54.4]} 32... Kf5 {[%clk 0:03:16.2]} 33. b4 {[%clk
0:03:50.8]} 33... g4 {[%clk 0:03:14.8]} 34. fxg4+ {[%clk 0:03:49.3]} 34... Kxg4
{[%clk 0:03:13.7]} 35. Ke2 {[%clk 0:03:48.3]} 35... f3+ {[%clk 0:03:11.7]} 36.
Kf2 {[%clk 0:03:47.1]} 36... Kf4 {[%clk 0:03:10.7]} 37. a3 {[%clk 0:03:44.4]}
37... Ke4 {[%clk 0:03:09.4]} 38. bxc5 {[%clk 0:03:43.6]} 38... bxc5 {[%clk
0:03:08.1]} 39. a4 {[%clk 0:03:43.1]} 39... Kd3 {[%clk 0:03:06.6]} 40. Kxf3
{[%clk 0:03:42.4]} 40... Kxc3 {[%clk 0:03:05.7]} 41. Ke2 {[%clk 0:03:41.5]}
41... Kxc4 {[%clk 0:03:05]} 42. Kd2 {[%clk 0:03:41]} 42... Kb4 {[%clk
0:03:04.2]} 43. Kc2 {[%clk 0:03:40.1]} 43... Kxa4 {[%clk 0:03:03.2]} 44. Kb2
{[%clk 0:03:39.6]} 44... Kb4 {[%clk 0:03:02.1]} 45. Ka2 {[%clk 0:03:36.1]} 45...
c4 {[%clk 0:03:00.9]} 46. Kb2 {[%clk 0:03:35.3]} 46... a5 {[%clk 0:02:59.6]} 47.
Ka2 {[%clk 0:03:34.3]} 47... a4 {[%clk 0:02:58.8]} 48. Kb2 {[%clk 0:03:33.1]}
48... a3+ {[%clk 0:02:58.1]} 49. Ka2 {[%clk 0:03:32.2]} 49... c3 {[%clk
0:02:56.6]} 50. Kb1 {[%clk 0:03:31.3]} 50... Kb3 {[%clk 0:02:55.4]} 51. Ka1
{[%clk 0:03:30.2]} 51... Kc4 {[%clk 0:02:51.2]} 52. Kb1 {[%clk 0:03:28.6]} 52...
Kd3 {[%clk 0:02:50.1]} 53. Kc1 {[%clk 0:03:27.2]} 53... a2 {[%clk 0:02:38.4]}
54. Kd1 {[%clk 0:03:25.4]} 54... a1=Q# {[%clk 0:02:36.3]} 0-1

[Event "Live Chess"]
[Site "Chess.com"]
[Date "2023.05.21"]
[Round "-"]
[White "Ian-Morley"]
[Black "Vitalii18a"]
[Result "0-1"]
[WhiteElo "1054"]
[BlackElo "1111"]
[TimeControl "300"]
[EndTime "1:19:05 PDT"]
[Termination "Vitalii18a won by checkmate"]

1. e4 {[%clk 0:04:58.8]} 1... e5 {[%clk 0:04:58.9]} 2. Nf3 {[%clk 0:04:57.7]}
2... d6 {[%clk 0:04:57.7]} 3. d4 {[%clk 0:04:56.4]} 3... exd4 {[%clk 0:04:56]}
4. Nxd4 {[%clk 0:04:55.4]} 4... Be7 {[%clk 0:04:54.7]} 5. Bc4 {[%clk 0:04:51]}
5... Nf6 {[%clk 0:04:49.1]} 6. Qf3 {[%clk 0:04:49]} 6... O-O {[%clk 0:04:47]} 7.
Bg5 {[%clk 0:04:46.3]} 7... h6 {[%clk 0:04:44.5]} 8. Bxf6 {[%clk 0:04:45.3]}
8... Bxf6 {[%clk 0:04:42.1]} 9. Nf5 {[%clk 0:04:43.4]} 9... Bxf5 {[%clk
0:04:39]} 10. exf5 {[%clk 0:04:42.4]} 10... Bxb2 {[%clk 0:04:37.6]} 11. O-O
{[%clk 0:04:38.1]} 11... Bxa1 {[%clk 0:04:36.1]} 12. Nd2 {[%clk 0:04:37.6]}
12... Bf6 {[%clk 0:04:29.6]} 13. Ne4 {[%clk 0:04:34.6]} 13... Nc6 {[%clk
0:04:23.5]} 14. Qg3 {[%clk 0:04:29.5]} 14... Ne5 {[%clk 0:04:15.8]} 15. Be2
{[%clk 0:04:26.2]} 15... Qe7 {[%clk 0:03:57.8]} 16. Nxf6+ {[%clk 0:04:24.7]}
16... Qxf6 {[%clk 0:03:56.3]} 17. f4 {[%clk 0:04:19.8]} 17... Nc6 {[%clk
0:03:39.8]} 18. Bf3 {[%clk 0:03:40.3]} 18... Qxf5 {[%clk 0:03:21.9]} 19. Bxc6
{[%clk 0:03:32.9]} 19... bxc6 {[%clk 0:03:20.5]} 20. Qc3 {[%clk 0:03:30.6]}
20... c5 {[%clk 0:03:16.5]} 21. a4 {[%clk 0:03:28.3]} 21... Rfe8 {[%clk
0:03:11.6]} 22. Re1 {[%clk 0:02:59.7]} 22... Rxe1+ {[%clk 0:03:09]} 23. Qxe1
{[%clk 0:02:58.6]} 23... Qxf4 {[%clk 0:02:51.9]} 24. Qe7 {[%clk 0:02:19.9]}
24... Rb8 {[%clk 0:02:37.5]} 25. Qxc7 {[%clk 0:02:17.2]} 25... Rb1# {[%clk
0:02:35.6]} 0-1

[Event "Live Chess"]
[Site "Chess.com"]
[Date "2023.05.21"]
[Round "-"]
[White "Tushinskiy"]
[Black "JoshMcK"]
[Result "1-0"]
[WhiteElo "2188"]
[BlackElo "1536"]
[TimeControl "300"]
[EndTime "1:19:06 PDT"]
[Termination "Tushinskiy won by resignation"]

1. d4 {[%clk 0:04:57.3]} 1... d5 {[%clk 0:04:58.3]} 2. c3 {[%clk 0:04:57.2]}
2... e6 {[%clk 0:04:57.5]} 3. Nf3 {[%clk 0:04:57.1]} 3... Nf6 {[%clk 0:04:55.9]}
4. Bf4 {[%clk 0:04:57]} 4... Bd6 {[%clk 0:04:54.8]} 5. Bg3 {[%clk 0:04:56.9]}
5... O-O {[%clk 0:04:53]} 6. Nbd2 {[%clk 0:04:56.1]} 6... c5 {[%clk 0:04:51.8]}
7. e3 {[%clk 0:04:54.9]} 7... Qc7 {[%clk 0:04:49.7]} 8. Bd3 {[%clk 0:04:50.5]}
8... Nc6 {[%clk 0:04:48.6]} 9. dxc5 {[%clk 0:04:45.9]} 9... Bxg3 {[%clk
0:04:46.5]} 10. hxg3 {[%clk 0:04:45.8]} 10... Ne5 {[%clk 0:04:39.5]} 11. Nxe5
{[%clk 0:04:43.4]} 11... Qxe5 {[%clk 0:04:39.4]} 12. e4 {[%clk 0:04:41.6]} 12...
dxe4 {[%clk 0:04:34.8]} 13. Qe2 {[%clk 0:04:36.2]} 13... Qxc5 {[%clk 0:04:26.5]}
14. Nxe4 {[%clk 0:04:33.6]} 14... Nxe4 {[%clk 0:04:22.2]} 15. Qxe4 {[%clk
0:04:33.5]} 15... g6 {[%clk 0:04:17.5]} 16. Qh4 {[%clk 0:04:30.8]} 16... Qe5+
{[%clk 0:04:08.2]} 17. Kd2 {[%clk 0:04:28.1]} 17... h5 {[%clk 0:04:02.4]} 18.
Rae1 {[%clk 0:04:26]} 18... Qd6 {[%clk 0:03:57.2]} 19. g4 {[%clk 0:04:22.8]}
19... Qf4+ {[%clk 0:03:53.1]} 20. Re3 {[%clk 0:04:18]} 20... Qxg4 {[%clk
0:03:47.4]} 21. Qf6 {[%clk 0:04:11.7]} 21... Qa4 {[%clk 0:02:59.5]} 22. Rxh5
{[%clk 0:04:03.3]} 22... gxh5 {[%clk 0:02:54.3]} 23. Rg3+ {[%clk 0:04:01.1]} 1-0

[Event "Live Chess"]
[Site "Chess.com"]
[Date "2023.05.21"]
[Round "-"]
[White "RichardABates"]
[Black "MaximKris"]
[Result "1-0"]
[WhiteElo "2107"]
[BlackElo "1816"]
[TimeControl "300"]
[EndTime "1:19:19 PDT"]
[Termination "RichardABates won by checkmate"]

1. d4 {[%clk 0:04:58.9]} 1... d5 {[%clk 0:04:58.9]} 2. c4 {[%clk 0:04:57.6]}
2... e6 {[%clk 0:04:57.5]} 3. Nf3 {[%clk 0:04:55.6]} 3... Nf6 {[%clk 0:04:52.2]}
4. g3 {[%clk 0:04:53.6]} 4... Bd6 {[%clk 0:04:50.4]} 5. Bg2 {[%clk 0:04:51.6]}
5... c6 {[%clk 0:04:48.5]} 6. O-O {[%clk 0:04:50.3]} 6... O-O {[%clk 0:04:45.9]}
7. Nc3 {[%clk 0:04:48.9]} 7... dxc4 {[%clk 0:04:41.6]} 8. e4 {[%clk 0:04:46.6]}
8... Bc7 {[%clk 0:04:37.8]} 9. a4 {[%clk 0:04:32.5]} 9... Re8 {[%clk 0:02:51.5]}
10. Qe2 {[%clk 0:04:27.8]} 10... b6 {[%clk 0:02:39.6]} 11. Bg5 {[%clk
0:03:55.4]} 11... h6 {[%clk 0:02:35.8]} 12. Bh4 {[%clk 0:03:54.1]} 12... g5
{[%clk 0:02:33.9]} 13. Nxg5 {[%clk 0:03:52.5]} 13... hxg5 {[%clk 0:02:33.8]} 14.
Bxg5 {[%clk 0:03:51.4]} 14... Nbd7 {[%clk 0:02:30.7]} 15. e5 {[%clk 0:03:47]}
15... Qe7 {[%clk 0:02:26.4]} 16. exf6 {[%clk 0:03:44.1]} 16... Nxf6 {[%clk
0:02:26.3]} 17. Ne4 {[%clk 0:03:38.7]} 17... Bd8 {[%clk 0:02:19.7]} 18. Bxf6
{[%clk 0:03:37]} 18... Kf8 {[%clk 0:02:19.6]} 19. Bxe7+ {[%clk 0:03:30]} 19...
Kxe7 {[%clk 0:02:19.5]} 20. Qf3 {[%clk 0:03:22.9]} 20... Kd7 {[%clk 0:02:19.4]}
21. Nf6+ {[%clk 0:03:20.7]} 21... Kc7 {[%clk 0:02:19.3]} 22. Nxe8+ {[%clk
0:03:18.8]} 22... Kb8 {[%clk 0:02:19.2]} 23. Qxc6 {[%clk 0:03:16.7]} 23... Bb7
{[%clk 0:02:17.6]} 24. Qxb7# {[%clk 0:03:15.3]} 1-0